Cogmind - Beta 15 @@@ ROGUE MODE // 2025.10.08 @ 20:31:35 Player: DietSnapple Result: Destroyed by X-57 Shotgunner with High-powered Shotgun Performance ------------- Evolutions (2) 1000 Regions Visited (5) 1000 Robots Destroyed (54) 270 Value Destroyed (1366) 1366 Prototype IDs (25) 500 Alien Tech Used (0) 0 Bonus (300) 300 TOTAL SCORE: 4436 Bonus ------- Aligned with FarCom 300 Cogmind --------- Core Integrity 0/550 Matter 281/300 Energy 24/100 System Corruption 12% Temperature Cool (0) Movement Core (50) Location -8/Materials Parts ------- > --- POWER (1) -------- (None) > --- PROPULSION (3) --- (None) > --- UTILITY (5) ------ (None) > --- WEAPON (2) ------- (None) > --- INVENTORY (5) ---- Light Nuclear Core Improved Titanium Leg Improved Flight Unit ECM Suite Improved Utility Shielding Peak State ------------ > --- POWER ------------ Nuclear Core > --- PROPULSION ------- Improved Titanium Leg Improved Titanium Leg Improved Titanium Leg > --- UTILITY ---------- Improved Heat Sink Large Storage Unit Improved Sensor Array Improved Signal Interpreter Trap Reconfigurator > --- WEAPON ----------- High-powered Shotgun Katana > --- INVENTORY -------- Improved Ion Engine Light Nuclear Core Improved Flight Unit Improved Flight Unit Cooled VTOL Module Cooled VTOL Module Cooled VTOL Module Cooled VTOL Module ECM Suite Utility Shielding Improved Utility Shielding Light Armor Plating Hacking Suite Light Assault Rifle [Rating: 44] Favorites ----------- Power Ion Engine Engine Ion Engine Power Core Nuclear Core Propulsion Light Treads Treads Light Treads Leg Improved Titanium Leg Wheel Compact Wheel Flight Unit Cooled VTOL Module Utility Large Storage Unit Device Improved Heat Sink Storage Large Storage Unit Processor Improved Signal Interpreter Protection Light Armor Plating Weapon Assault Rifle Energy Gun Beam Rifle Ballistic Gun Assault Rifle Ballistic Cannon Light Cannon Slashing Weapon Katana Build | -11 -10 -10 -10 -9 -8 ------- Run | Yrd Mat Min Exi Min Mat Slots Evolved 4 | . . . . . 4 Power . | . . . . . . Propulsion 1 | . . . . . 1 Utility 3 | . . . . . 3 Weapon . | . . . . . . Parts Attached 49 | 6 4 . . . 39 Power 8 | 1 . . . . 7 Engine 5 | 1 . . . . 4 Core 3 | . . . . . 3 Reactor . | . . . . . . Propulsion 20 | 2 1 . . . 17 Treads 4 | 2 1 . . . 1 Leg 10 | . . . . . 10 Wheel 1 | . . . . . 1 Hover . | . . . . . . Flight 5 | . . . . . 5 Utility 12 | 1 1 . . . 10 Device 6 | . . . . . 6 Storage 2 | 1 1 . . . . Processor 1 | . . . . . 1 Hackware . | . . . . . . Protection 3 | . . . . . 3 Artifact . | . . . . . . Weapon 9 | 2 2 . . . 5 Energy Gun 2 | . . . . . 2 Energy Cannon . | . . . . . . Ballistic Gun 5 | 2 1 . . . 2 Ballistic Cannon 1 | . 1 . . . . Launcher . | . . . . . . Special Weapon . | . . . . . . Impact Weapon . | . . . . . . Slashing Weapon 1 | . . . . . 1 Piercing Weapon . | . . . . . . Special Melee Weapon . | . . . . . . Unidentified Prototypes 1 | . . . . . 1 Parts Lost 18 | . . . . . 18 Power 4 | . . . . . 4 Propulsion 6 | . . . . . 6 Utility 5 | . . . . . 5 Weapon 3 | . . . . . 3 Highest Loss Streak 12 | . . . . . 12 To Critical Strikes . | . . . . . . Average Backups 11 | 2 9 14 15 15 12 Power . | . 1 1 1 1 . Propulsion 4 | . 3 4 4 4 4 Utility 3 | . 2 4 4 5 3 Weapon 3 | . 2 5 5 5 3 Tool/Special . | . . . . . . Unused Backups 16 | . . . 1 . 15 Power . | . . . . . . Propulsion 10 | . . . 1 . 9 Utility 4 | . . . . . 4 Weapon 2 | . . . . . 2 Tool/Special . | . . . . . . Average Slot Usage (%) 95 | . 99 100 100 100 89 Engine 10 | . 14 14 14 14 5 Core 1 | . . . . . 2 Treads 17 | . 28 28 28 28 4 Leg 8 | . . . . . 19 Device 6 | . . . . . 13 Storage 20 | . 27 28 28 28 11 Processor 2 | . . . . . 4 Protection 3 | . . . . . 8 Ballistic Gun 12 | . 17 14 14 14 8 Ballistic Cannon 7 | . 10 14 14 14 1 Slashing Weapon 2 | . . . . . 6 Peak Build Rating 44 | 6 8 8 9 9 44 Average Rating 15 | 4 7 8 8 9 24 On Entrance 6 | . 6 8 8 9 9 Naked Turns 7 | . . . . . 7 Heaviest Build 39 | 13 35 35 35 35 39 Greatest Support 60 | 40 40 40 40 40 60 Greatest Overweight (x) 9 | . . . . . 9 Average Overweight (x) . | . . . . . . Largest Inventory Capacity 15 | 8 15 15 15 15 15 Average Capacity 14 | 7 14 15 15 15 14 Most Carried 15 | 4 14 15 15 15 15 Average Carried 11 | 2 9 14 14 15 12 Final Capacity 15 | 8 15 15 15 15 5 Final Carried 15 | 4 14 15 15 15 5 Class Distribution -------------------- 66% | Mutant 24% | Scavenger-Assassin 9% | Scavenger-Mutant Dominant Class ---------------- Mutant | -10/Materials Mutant | -10/Mines Mutant | -10/Exiles Mutant | -9/Mines Scavenger-Assassin | -8/Materials Resources | -11 -10 -10 -10 -9 -8 ----------- Run | Yrd Mat Min Exi Min Mat Matter Collected 1274 | 235 292 21 . . 726 Remotely . | . . . . . . Salvage Created 1918 | . 433 38 . . 1447 Parts 112 | . 22 5 . . 85 Haulers Intercepted 5 | . 1 . . . 4 Recyclers Shooed 1 | . . . . . 1 Parts Field Recycled . | . . . . . . Retrieved Matter . | . . . . . . Parts Self-Destructed . | . . . . . . Prevented . | . . . . . . Kills | -11 -10 -10 -10 -9 -8 ------- Run | Yrd Mat Min Exi Min Mat Combat Hostiles Destroyed 37 | . 8 3 . . 26 Melee 13 | . . . . . 13 Guns 8 | . 3 . . . 5 Cannons 15 | . 5 3 . . 7 Classes Destroyed 13 | . 5 1 . . 7 Worker 1 | . . . . . 1 Builder 2 | . . . . . 2 Tunneler 1 | . 1 . . . . Hauler 5 | . 1 . . . 4 Recycler 2 | . . . . . 2 Operator 4 | . 2 . . . 2 Watcher 2 | . 2 . . . . Swarmer 11 | . . 3 . . 8 Grunt 19 | . 8 . . . 11 Brawler 1 | . . . . . 1 Duelist 1 | . . . . . 1 Sentry 4 | . . . . . 4 Specialist 1 | . . . . . 1 Best Kill Streak 4 | . 3 3 . . 4 Combat Bots Only 4 | . 3 3 . . 4 Max Kills in Single Turn 1 | . 1 1 . . 1 Gunslinging . | . . . . . . Exploded . | . . . . . . Melee 1 | . . . . . 1 Uniques/NPCs Destroyed . | . . . . . . Combat | -11 -10 -10 -10 -9 -8 -------- Run | Yrd Mat Min Exi Min Mat Hostile Shots Fired 310 | . 28 6 . . 276 Missed 97 | . 7 3 . . 87 Hits 213 | . 21 3 . . 189 Melee 15 | . . . . . 15 Projectile 198 | . 21 3 . . 174 Critical Strikes 6 | . . . . . 6 Damage Taken 3064 | . 235 24 . . 2805 Core 570 | . 10 9 . . 551 Absorbed by Shields . | . . . . . . Redirected to Shielding 16 | . . . . . 16 Core Remaining (%) 96 | 100 . . . 92 . Volleys Fired 106 | . 34 3 . . 69 Largest 2 | . 2 2 . . 2 Hottest 112 | . 50 50 . . 112 Shots Fired 180 | . 68 6 . . 106 Gun 122 | . 45 3 . . 74 Cannon 58 | . 23 3 . . 32 Launcher . | . . . . . . Special . | . . . . . . Kinetic 159 | . 68 6 . . 85 Thermal 21 | . . . . . 21 Explosive . | . . . . . . Electromagnetic . | . . . . . . Robot Hit Streak 31 | . 9 1 . . 31 Robot Miss Streak 4 | . 2 1 . . 4 Penetration Max . | . . . . . . Secondary Targets . | . . . . . . Shots Hit Robots 184 | . 51 3 . . 130 Core Hits 71 | . 17 3 . . 51 Critical Kills . | . . . . . . Critical Parts Destroyed . | . . . . . . Critical Strikes 9 | . . . . . 9 Burn 3 | . . . . . 3 Sever 6 | . . . . . 6 Melee Attacks 75 | . . . . . 75 Impact . | . . . . . . Slashing 75 | . . . . . 75 Piercing . | . . . . . . Sneak Attacks 14 | . . . . . 14 Combat Hostiles . | . . . . . . Follow-up Attacks . | . . . . . . Damage Inflicted 4114 | . 731 50 . . 3333 Guns 1141 | . 450 . . . 691 Cannons 714 | . 281 50 . . 383 Explosions . | . . . . . . Melee 2257 | . . . . . 2257 Ramming 2 | . . . . . 2 Kinetic 1681 | . 731 50 . . 900 Thermal 174 | . . . . . 174 Explosive . | . . . . . . Electromagnetic . | . . . . . . Impact . | . . . . . . Slashing 2257 | . . . . . 2257 Piercing . | . . . . . . Highest Corruption 12 | . . . . . 12 Average Corruption 11 | . . . . . 11 Corruption Purged . | . . . . . . Corruption Blocked . | . . . . . . Effects 63 | . . . . . 63 Message Errors 14 | . . . . . 14 Matter Fused 5 | . . . . . 5 Heat Flow Errors 11 | . . . . . 11 Energy Discharges 10 | . . . . . 10 Parts Rejected 2 | . . . . . 2 Data Loss (minor) 10 | . . . . . 10 Data Loss (major) 5 | . . . . . 5 Misfires 3 | . . . . . 3 Alerts 1 | . . . . . 1 Misdirections 1 | . . . . . 1 Weapon Failures 1 | . . . . . 1 Overload Shots . | . . . . . . Overflow Damage 275 | . . . . . 275 Projectiles . | . . . . . . Explosions . | . . . . . . Melee 275 | . . . . . 275 Knockbacks 10 | . 4 . . . 6 Impact . | . . . . . . Kinetic 10 | . 4 . . . 6 Secondary . | . . . . . . Self-Inflicted Damage . | . . . . . . Shots . | . . . . . . Rammed . | . . . . . . Targets Rammed 1 | . . . . . 1 Kicked 1 | . . . . . 1 Crushed . | . . . . . . Highest Temperature 243 | . 2 . . . 243 Average Temperature 45 | . 2 . . . 49 Received Heat Transfer 1260 | . 126 . . . 1134 Siege Activations . | . . . . . . Martial Activations . | . . . . . . Shielding Activations . | . . . . . . Robots Disrupted . | . . . . . . Combat Hostiles . | . . . . . . Robots Corrupted . | . . . . . . Combat Hostiles . | . . . . . . Parts Fried . | . . . . . . Impact Corruptions . | . . . . . . Robots Melted 1 | . . . . . 1 Combat Hostiles 1 | . . . . . 1 Parts Melted 2 | . . . . . 2 Heat Transferred 666 | . . . . . 666 Parts Sabotaged . | . . . . . . Parts Stolen . | . . . . . . Parts Stripped . | . . . . . . Power Chain Reactions . | . . . . . . Alert | -11 -10 -10 -10 -9 -8 ------- Run | Yrd Mat Min Exi Min Mat Maximum Alert Level . | . . . . . . Low Security (%) 100 | 100 100 100 . 100 100 Level 1 . | . . . . . . Level 2 . | . . . . . . Level 3 . | . . . . . . Level 4 . | . . . . . . Level 5 . | . . . . . . High Security . | . . . . . . Max Security . | . . . . . . Peak Influence 145 | . 63 70 . . 145 Initial . | . . . . . . Average 48 | . 15 52 . . 81 Influence Increases 1173 | . 324 70 . . 779 Destroy 0b10 Robot/C 740 | . 160 60 . . 520 Destroy 0b10 Robot/NC 85 | . 30 . . . 55 Destroy Leader 174 | . 46 10 . . 118 Successful Hack 34 | . 12 . . . 22 Destroy Structure 5 | . 1 . . . 4 Lose Combat Pursuer 135 | . 75 . . . 60 Influence Decreases 1077 | . 324 30 40 . 683 Entered New Map 40 | . . . 40 . . Time Decay 885 | . 324 30 . . 531 Lost Part 152 | . . . . . 152 Squads Dispatched 15 | . 5 . . . 10 Investigation 3 | . 3 . . . . Extermination . | . . . . . . Reinforcement 6 | . 2 . . . 4 Assault . | . . . . . . Garrison 6 | . . . . . 6 Intercept . | . . . . . . Searches Triggered . | . . . . . . Construction Impeded . | . . . . . . Haulers Reinforced . | . . . . . . Active Scanning Responses . | . . . . . . Cargo Convoy Interrupts . | . . . . . . Stealth | -11 -10 -10 -10 -9 -8 --------- Run | Yrd Mat Min Exi Min Mat Distress Signals 4 | . . . . . 4 Communications Jammed . | . . . . . . Distress Signals . | . . . . . . Times Spotted 78 | . 18 2 . . 58 Peak Tracking Total 5 | . 3 2 . . 5 Tactical Retreats 8 | . 4 . . . 4 Traps | -11 -10 -10 -10 -9 -8 ------- Run | Yrd Mat Min Exi Min Mat Traps Triggered 2 | . 2 . . . . Indirectly . | . . . . . . Trap Hack Attempts . | . . . . . . Triggered . | . . . . . . Disarmed . | . . . . . . Reprogrammed . | . . . . . . Reused . | . . . . . . Traps Reconfigurated 1 | . . . . . 1 Traps Extracted . | . . . . . . Installed . | . . . . . . Triggered . | . . . . . . Machines | -11 -10 -10 -10 -9 -8 ---------- Run | Yrd Mat Min Exi Min Mat Machines Disabled . | . . . . . . Max in Single Turn . | . . . . . . Machines Repaired . | . . . . . . Machines Dismantled . | . . . . . . Machines Sabotaged . | . . . . . . Overloaded Fab Kills . | . . . . . . Hacking | -11 -10 -10 -10 -9 -8 --------- Run | Yrd Mat Min Exi Min Mat Machines Accessed 11 | . 5 . 1 . 5 Terminals 7 | . 4 . . . 3 Fabricators . | . . . . . . Repair Stations . | . . . . . . Recycling Units 2 | . 1 . . . 1 Scanalyzers 1 | . . . . . 1 Garrison Access . | . . . . . . Total Hacks 26 | . 15 . 1 . 10 Successful 13 | . 5 . 1 . 7 Failed 13 | . 10 . . . 3 Catastrophic 1 | . . . . . 1 Database Lockouts . | . . . . . . Manual 19 | . 12 . 1 . 6 Terminals 20 | . 14 . . . 6 Fabricators . | . . . . . . Repair Stations . | . . . . . . Recycling Units 3 | . 1 . . . 2 Scanalyzers 2 | . . . . . 2 Garrison Access . | . . . . . . Terminal Hacks 4 | . 2 . 1 . 1 Locate Traps 1 | . 1 . . . . Recall Reinforcements 1 | . . . . . 1 Hauler Manifests 1 | . 1 . . . . Proto ID Catalog 1 | . . . 1 . . Fabricator Hacks . | . . . . . . Repair Station Hacks . | . . . . . . Recycling Unit Hacks 3 | . 1 . . . 2 Report Inventory 2 | . 1 . . . 1 Retrieve Components 1 | . . . . . 1 Scanalyzer 2 | . . . . . 2 Insert Component 1 | . . . . . 1 Analyze 1 | . . . . . 1 Garrison Access Hacks . | . . . . . . Unauthorized Hacks 4 | . 2 . . . 2 Terminals 4 | . 2 . . . 2 Botnet 2 | . 1 . . . 1 Operators 2 | . 1 . . . 1 Fabricators . | . . . . . . Repair Stations . | . . . . . . Recycling Units . | . . . . . . Scanalyzers . | . . . . . . Garrison Access . | . . . . . . Data Cores Recovered . | . . . . . . Used . | . . . . . . Hacking Detections 6 | . 3 . . . 3 Full Trace Events . | . . . . . . Feedback Events . | . . . . . . Feedback Blocked . | . . . . . . Robot Schematics Acquired . | . . . . . . Robots Built . | . . . . . . Authchips . | . . . . . . Time . | . . . . . . Total Robot Build Rating . | . . . . . . Part Schematics Acquired 1 | . . . . . 1 Parts Built . | . . . . . . Authchips . | . . . . . . Time . | . . . . . . Total Part Build Rating . | . . . . . . Parts Repaired . | . . . . . . Time . | . . . . . . Parts Recycled . | . . . . . . Recycled Matter . | . . . . . . Retrieved Matter . | . . . . . . Retrieved Components 9 | . . . . . 9 Parts Scanalyzed 1 | . . . . . 1 Part Schematics Acquired 1 | . . . . . 1 Parts Damaged . | . . . . . . Bothacking | -11 -10 -10 -10 -9 -8 ------------ Run | Yrd Mat Min Exi Min Mat Used RIF Installer . | . . . . . . Robots Hacked . | . . . . . . Non-combat . | . . . . . . Combat . | . . . . . . Robot Hacks Applied . | . . . . . . Relay Couplers Released . | . . . . . . Fabnet Peak Effective % . | . . . . . . Robots Rewired . | . . . . . . Allies Hacked . | . . . . . . Hacks Repelled . | . . . . . . Allies | -11 -10 -10 -10 -9 -8 -------- Run | Yrd Mat Min Exi Min Mat Total Allies . | . . . . . . Largest Group . | . . . . . . Highest-Rated Group . | . . . . . . Highest-Rated Ally . | . . . . . . Total Orders . | . . . . . . Ally Attacks . | . . . . . . Total Damage . | . . . . . . Kills . | . . . . . . Allies Corrupted . | . . . . . . Allies Melted . | . . . . . . Intel | -11 -10 -10 -10 -9 -8 ------- Run | Yrd Mat Min Exi Min Mat Active Infowar (turns) 1403 | . . . . . 1403 Sensors 1048 | . . . . . 1048 Structural 355 | . . . . . 355 Robot Analysis Total . | . . . . . . Derelict Logs Recovered . | . . . . . . Drone Launches . | . . . . . . Drone Recoveries . | . . . . . . Exploration | -11 -10 -10 -10 -9 -8 ------------- Run | Yrd Mat Min Exi Min Mat Turns Passed 4301 | 128 1534 76 536 140 1887 Spaces Moved 2265 | 83 825 42 335 88 892 Core 31 | 15 . . . . 16 Treads 1420 | 68 825 42 335 88 62 Legs 782 | . . . . . 782 Wheels 8 | . . . . . 8 Hover . | . . . . . . Flight 24 | . . . . . 24 Fastest Speed 50 | 50 160 160 160 160 50 Average Speed 148 | 140 160 160 160 160 132 Slowest Speed 500 | 160 160 160 160 160 500 Overloaded Moves . | . . . . . . Propulsion Burnouts . | . . . . . . Robots Hopped . | . . . . . . Potential Cave-ins . | . . . . . . Cave-ins Triggered . | . . . . . . Exploration Rate (%) 44 | 5 97 11 77 29 45 Regions Visited 5 Branch Regions 3 Pre-discovered Areas . | . . . . . . Known Exits Taken . | . . . . . . Unknown Exits Taken 5 | 1 1 1 1 1 . Scrap Searched . | . . . . . . Spaces Dug 1 | . . . . . 1 Terrain Destroyed 1 | . . . . . 1 Melee 1 | . . . . . 1 Projectile . | . . . . . . AOE . | . . . . . . Terrain Rammed . | . . . . . . Walls Destroyed . | . . . . . . Machines Disabled . | . . . . . . Actions | -11 -10 -10 -10 -9 -8 --------- Run | Yrd Mat Min Exi Min Mat Total 2908 | 92 969 45 336 87 1379 Wait 334 | . 99 . . . 235 Move 2260 | 82 824 41 334 87 892 Hop . | . . . . . . Pick Up 38 | 4 8 1 1 . 24 Fast Attach 18 | 6 1 . . . 11 Attach 15 | . . . . . 15 Detach 4 | . . . . . 4 Swap 29 | . 3 . . . 26 Drop 28 | . . . 1 . 27 Fire 106 | . 34 3 . . 69 Melee 75 | . . . . . 75 Ram . | . . . . . . Kick 1 | . . . . . 1 Crush . | . . . . . . Escape Stasis . | . . . . . . Rewire . | . . . . . . Trap . | . . . . . . Miscellaneous . | . . . . . . Route ------- -11/Scrapyard -10/Materials (discovered 4 exits: [*Mat x3] / [*Min]) -10/Mines -10/Exiles (discovered 2 exits: [*Min x2]) -9/Mines -8/Materials (discovered 1 exit: [*Fac]) History --------- Turn | Location | Event 8 | -11/Scrapyard | Discovered new exit (range 15) 129 | -11/Scrapyard | Entered Materials 318 | -10/Materials | Build established: Mutant 497 | -10/Materials | Discovered new exit (range 4) 924 | -10/Materials | Discovered new exit (range 6) 1088 | -10/Materials | Discovered new exit (range 14) 1333 | -10/Materials | Discovered new exit (range 13) 1663 | -10/Materials | Entered Mines 1701 | -10/Mines | Met a Derelict bent on vengeance 1728 | -10/Mines | Deemed a non-threat by the Exiles lab entrance 1729 | -10/Mines | Discovered new exit (range 5) 1739 | -10/Mines | Entered Exiles 1760 | -10/Exiles | Discovered new exit (range 15) 1784 | -10/Exiles | Met 8R-AWN 1810 | -10/Exiles | Met EX-HEX 1859 | -10/Exiles | Met EX-BIN 1880 | -10/Exiles | Aligned with FarCom system 1882 | -10/Exiles | Given EX-Vault access code 1922 | -10/Exiles | Opened EX-Vault 1937 | -10/Exiles | Found Trap Reconfigurator 1971 | -10/Exiles | Warned to stay clear of 0b10 Research branches 2013 | -10/Exiles | Met EX-DEC 2073 | -10/Exiles | Visited The Gauntlet 2256 | -10/Exiles | Discovered new exit (range 11) 2275 | -10/Exiles | Left Exiles lab with Trap Reconfigurator 2275 | -10/Exiles | Entered Mines 2400 | -9/Mines | Discovered new exit (range 9) 2415 | -9/Mines | Entered Materials 2415 | -8/Materials | Evolved 4 slots: Propulsion x1, Utility x3 2702 | -8/Materials | Garrison activated, responded to threat 2731 | -8/Materials | System corruption reached 10% 2813 | -8/Materials | Core integrity fell below 50% 2831 | -8/Materials | Lost 12 parts (2p5n3u2w) 3080 | -8/Materials | Garrison activated, responded to threat 3158 | -8/Materials | Build established: Scavenger-Mutant 3534 | -8/Materials | Build established: Scavenger-Assassin 3983 | -8/Materials | Discovered new exit (range 5) 4255 | -8/Materials | Core integrity fell below 20% 4295 | -8/Materials | Released all parts (7) 4302 | -8/Materials | Destroyed by X-57 Shotgunner with High-powered Shotgun Last Messages --------------- 04238_ Y-45 Defender Hvy. Assault Rifle severed. 04243_ Sneak attack on U-05 Engineer. 04243_ Destroyed Welding Torch. 04243_ Destroyed Wheel. 04245_ U-05 Engineer destroyed. 04264_ System corrupted: Matter fused (-10). 04265_ Katana destroyed. 04274_ Nuclear Core destroyed. 04277_ Lgt. Armor Plating destroyed. 04284_ Kicked O-16 Technician out of the way. 04288_ System corrupted: FCS attempts to trigger Hpw. Shotgun. 04288_ System corrupted: Hpw. Shotgun misfires. 04295_ Purification Channel disabled. 04295_ Imp. Sensor Array destroyed. 04295_ Released Imp. Titanium Leg. 04295_ Released Lrg. Storage Unit. 04295_ Released Imp. Heat Sink. 04295_ Released Hpw. Shotgun. 04295_ Released Imp. Signal Interpreter. 04295_ Released Cld. VTOL Module. Map ----- +----------------------------------------------------+ | | | | | | | | | | | | | | | | | | | | | | | | | | | | | | | | | | | | | | | | | | | | | ??????????????????????????????????????????????? | | ?????????????###############??????????????????? | | ?????????????#= ! [ #??????????????????? | | ?????????????#=[ @ #??????????????????? | | ???????#######![! """"" #??????????????????? | | ???????# #x!! """""""" #??????????????????? | | ???????# =g!*! """ """ #??????????????????? | | ???????#### g#== #??????????????????? | | ??????????# Y###############??????????????????? | | ??????? + ]!! #???????????????????????? | | ???# # ]!! #???????????????????????? | | ???# ?# !!! #???????????????????????? | | ???# ??# #???????????????????????? | | ???# ????# ##??????o????????????????? | | ???##???### "T" #????????????????????????? | | ?????# #????????????????????????? | | ?????# #????????????????????????? | | ??????##+#####"T"## ##???????????????????????? | | ?????????????#"""#% ##+########?????????????? | | ?????????????#####[! ???????????? | | ?????????????????#*= ???????????? | | ?????????????????# ##+#########????????????? | | ?????????????????# ####???????????????????????? | | ?????????????????# #??????????????????????????? | | ?????????????????# #??????????????????????????? | | ?????????????????# #??????????????????????????? | | ?????????????????# #??????????????????????????? | | ?????????????????#=#??????????????????????????? | +----------------------------------------------------+ Best States ------------- Heat Dissipation 45 Energy Generation 14 Energy Capacity 265 Matter Stores 300 Matter Capacity 300 Sight Range 16 Robot Scan Range 15 Terrain Scan Density 10 Armor Coverage 150 Core Shielding 20 Evasion (%) 55 Recoil Reduction 3 Item Schematics ----------------- Cld. VTOL Module | -8/Materials | Scanalyzed Robot Schematics ------------------ None Fabricated ------------ Nothing Repaired ---------- Nothing Alien Tech Used ----------------- None Achievements -------------- Safety First Challenges ------------ None Game ------ Seed DisruptionExplosiveBallwheel Manual? 0 Play Time 00:33:59 Cumulative 24.4 hours Start 2025.10.08 @ 19:48:53 End 2025.10.08 @ 20:31:35 Sessions 1 Manual Loads 0 Difficulty Rogue Special Mode None Game No. 65 Rogue 58 Adventurer 7 Explorer 0 Win Type - Total 0 Types 0/0/0/0/0/0/0/0/0/0 Lore% 5 Gallery% 21 Achievement% 22 Wizard Run 0 Options --------- Layout 0 ASCII 0 Keyboard 1 Movement Vi Keybinds 0 Fullscreen 1 Font 18/SmallcapsGlow Map View 112x50 Zoom Use 0% Tactical HUD 1 Map Filters NONE Filters NONE Steam 1 RUN: d23d589c-1a70-4f28-b490-37342c9410ac